Cogmind - Beta 16 @@@ ROGUE MODE // 2025.10.24 @ 10:33:41 Player: ChromeKnight Result: Destroyed by BP-OOY(R) with Subdweller Machine Gun Performance ------------- Evolutions (0) 0 Regions Visited (3) 600 Robots Destroyed (18) 90 Value Destroyed (469) 469 Prototype IDs (0) 0 Alien Tech Used (0) 0 Bonus (0) 0 TOTAL SCORE: 1159 Bonus ------- None Cogmind --------- Core Integrity 0/250 Matter 288/300 Energy 198/200 System Corruption 4% Temperature Cool (0) Movement Rolling (107) Ox1 Location -10/Subcaves Parts ------- > --- POWER (1) -------- Subdweller Power Source > --- PROPULSION (2) --- Wheel Subdweller Monowheel > --- UTILITY (2) ------ Large Storage Unit Subdweller Optics > --- WEAPON (2) ------- Assault Rifle Assault Rifle > --- INVENTORY (15) --- Ion Engine Light Ion Engine Subdweller Power Source Wheel Subdweller Monowheel Hover Unit Small Storage Unit Medium Storage Unit Weight Redist. System Machine Analyzer Subdweller Optics Subdweller Optics Hacking Suite Subdweller Laser Multitool Peak State ------------ > --- POWER ------------ Subdweller Power Source > --- PROPULSION ------- Wheel Subdweller Monowheel > --- UTILITY ---------- Large Storage Unit Subdweller Optics > --- WEAPON ----------- Assault Rifle Assault Rifle > --- INVENTORY -------- Ion Engine Light Ion Engine Subdweller Power Source Wheel Subdweller Monowheel Hover Unit Small Storage Unit Medium Storage Unit Weight Redist. System Machine Analyzer Subdweller Optics Hacking Suite Subdweller Laser Multitool [Rating: 12] Favorites ----------- Power Ion Engine Engine Ion Engine Propulsion Light Treads Treads Light Treads Wheel Subdweller Monowheel Hover Unit Hover Unit Utility Large Storage Unit Device Heat Sink Storage Large Storage Unit Weapon EM Pulse Gun Energy Gun EM Pulse Gun Ballistic Gun Assault Rifle Build | -11 -10 -10 -10 ------- Run | Yrd Mat Min Sub Slots Evolved . | . . . . Power . | . . . . Propulsion . | . . . . Utility . | . . . . Weapon . | . . . . Parts Attached 21 | 5 5 . 11 Power 4 | . 2 . 2 Engine 4 | . 2 . 2 Core . | . . . . Reactor . | . . . . Propulsion 6 | 2 . . 4 Treads 3 | 2 . . 1 Leg . | . . . . Wheel 2 | . . . 2 Hover 1 | . . . 1 Flight . | . . . . Utility 5 | 1 2 . 2 Device 3 | . 1 . 2 Storage 2 | 1 1 . . Processor . | . . . . Hackware . | . . . . Protection . | . . . . Artifact . | . . . . Weapon 6 | 2 1 . 3 Energy Gun 3 | 2 1 . . Energy Cannon . | . . . . Ballistic Gun 3 | . . . 3 Ballistic Cannon . | . . . . Launcher . | . . . . Special Weapon . | . . . . Impact Weapon . | . . . . Slashing Weapon . | . . . . Piercing Weapon . | . . . . Special Melee Weapon . | . . . . Unidentified Prototypes . | . . . . Parts Lost 9 | . 1 . 8 Power 1 | . . . 1 Propulsion 3 | . . . 3 Utility 1 | . . . 1 Weapon 4 | . 1 . 3 Highest Loss Streak 8 | . 1 . 8 To Critical Strikes 1 | . . . 1 Average Backups 8 | . 6 13 12 Power 1 | . 1 2 2 Propulsion 1 | . . 3 2 Utility 3 | . 2 5 5 Weapon 1 | . 2 3 1 Tool/Special . | . . . . Unused Backups 11 | . . . 11 Power 1 | . . . 1 Propulsion 2 | . . . 2 Utility 6 | . . . 6 Weapon 1 | . . . 1 Tool/Special 1 | . . . 1 Average Slot Usage (%) 96 | . 96 100 93 Engine 13 | . 12 14 13 Treads 22 | . 28 28 7 Wheel 4 | . . . 15 Device 12 | . 12 14 12 Storage 14 | . 14 14 14 Energy Gun 22 | . 27 28 7 Ballistic Gun 5 | . . . 20 Peak Build Rating 12 | 5 8 8 12 Average Rating 7 | 4 6 8 9 On Entrance 5 | . 5 8 8 Avg Prop Armor Cover (%) . | . . . . Naked Turns . | . . . . Heaviest Build 31 | 9 29 29 31 Greatest Support 40 | 40 40 40 40 Greatest Overweight (x) 4 | . . . 4 Average Overweight (x) . | . . . . Largest Inventory Capacity 15 | 8 15 15 15 Average Capacity 13 | 7 13 15 15 Most Carried 15 | . 13 13 15 Average Carried 8 | . 6 13 12 Final Capacity 15 | 8 15 15 15 Final Carried 15 | . 13 13 15 Class Distribution -------------------- 87% | Mutant 12% | Scavenger-Mutant Dominant Class ---------------- Mutant | -10/Materials Mutant | -10/Mines Mutant | -10/Subcaves Resources | -11 -10 -10 -10 ----------- Run | Yrd Mat Min Sub Matter Collected 482 | 245 57 . 180 Remotely . | . . . . Salvage Created 693 | . 388 76 229 Parts 40 | . 26 1 13 Haulers Intercepted 2 | . 2 . . Recyclers Shooed . | . . . . Parts Field Recycled . | . . . . Retrieved Matter . | . . . . Parts Self-Destructed 4 | . . . 4 Prevented . | . . . . Parts Restored . | . . . . Kills | -11 -10 -10 -10 ------- Run | Yrd Mat Min Sub Combat Hostiles Destroyed 13 | . 7 2 4 Guns 11 | . 6 1 4 AOE 2 | . 1 1 . Classes Destroyed 7 | . 5 . 2 Hauler 2 | . 2 . . Operator 2 | . 2 . . Watcher 1 | . 1 . . Swarmer 3 | . 3 . . Grunt 6 | . 4 2 . Artisan 1 | . . . 1 Subdweller 4 | . . . 4 Best Kill Streak 4 | . 4 2 3 Combat Bots Only 4 | . 4 2 3 Max Kills in Single Turn 2 | . 2 1 1 Gunslinging . | . . . . Exploded 1 | . 1 1 . Melee . | . . . . Uniques/NPCs Destroyed . | . . . . Combat | -11 -10 -10 -10 -------- Run | Yrd Mat Min Sub Hostile Shots Fired 102 | . 31 9 62 Missed 24 | . 8 . 16 Hits 78 | . 23 9 46 Projectile 78 | . 23 9 46 Critical Strikes 3 | . . 1 2 Damage Taken 1385 | . 241 179 965 Core 260 | . 41 39 180 Absorbed by Shields . | . . . . Core Remaining (%) 100 | 100 . . . Volleys Fired 56 | . 24 4 28 Largest 2 | . 2 2 2 Hottest 80 | . 80 80 80 Shots Fired 100 | . 40 8 52 Gun 100 | . 40 8 52 Cannon . | . . . . Launcher . | . . . . Special . | . . . . Kinetic 35 | . . . 35 Thermal 29 | . 10 4 15 Explosive . | . . . . Electromagnetic 36 | . 30 4 2 Robot Hit Streak 17 | . 4 4 17 Robot Miss Streak 3 | . 3 1 3 Penetration Max . | . . . . Secondary Targets 2 | . . . 2 Max Gunslinging Chain 1 | . . . 1 Shots Hit Robots 70 | . 23 6 41 Core Hits 29 | . 14 5 10 Critical Kills . | . . . . Critical Parts Destroyed . | . . . . Critical Strikes 1 | . 1 . . Corrupt 1 | . 1 . . Melee Attacks . | . . . . Impact . | . . . . Slashing . | . . . . Piercing . | . . . . Sneak Attacks . | . . . . Combat Hostiles . | . . . . Follow-up Attacks . | . . . . Damage Inflicted 1173 | . 442 254 477 Guns 849 | . 301 71 477 Cannons . | . . . . Explosions 324 | . 141 183 . Melee . | . . . . Ramming . | . . . . Kinetic 345 | . . . 345 Thermal 525 | . 177 216 132 Explosive . | . . . . Electromagnetic 303 | . 265 38 . Impact . | . . . . Slashing . | . . . . Piercing . | . . . . Highest Corruption 4 | . 4 4 4 Average Corruption 3 | . 3 4 4 Corruption Purged . | . . . . Corruption Blocked . | . . . . Effects 22 | . 6 4 12 Message Errors 6 | . 1 1 4 Matter Fused 3 | . 1 1 1 Heat Flow Errors 2 | . . . 2 Energy Discharges 3 | . . 1 2 Data Loss (minor) 5 | . 2 1 2 Data Loss (major) 3 | . 2 . 1 Overload Shots . | . . . . Overflow Damage 5 | . 5 . . Projectiles . | . . . . Explosions 5 | . 5 . . Melee . | . . . . Knockbacks . | . . . . Impact . | . . . . Kinetic . | . . . . Secondary . | . . . . Self-Inflicted Damage 64 | . 14 50 . Shots 3 | . 1 2 . Rammed . | . . . . Targets Rammed . | . . . . Kicked . | . . . . Crushed . | . . . . Highest Temperature 204 | . 204 64 155 Average Temperature 91 | . 116 44 71 Received Heat Transfer 312 | . 84 90 138 Siege Activations . | . . . . Martial Activations . | . . . . Shielding Activations . | . . . . Robots Disrupted . | . . . . Combat Hostiles . | . . . . Robots Corrupted . | . . . . Combat Hostiles . | . . . . Parts Fried . | . . . . Impact Corruptions . | . . . . Robots Melted . | . . . . Combat Hostiles . | . . . . Parts Melted 4 | . 2 1 1 Heat Transferred 850 | . 275 275 300 Parts Sabotaged . | . . . . Parts Stolen . | . . . . Parts Stripped . | . . . . Power Chain Reactions 4 | . 2 2 . Alert | -11 -10 -10 -10 ------- Run | Yrd Mat Min Sub Maximum Alert Level . | . . . . Low Security (%) 100 | 100 100 100 . Level 1 . | . . . . Level 2 . | . . . . Level 3 . | . . . . Level 4 . | . . . . Level 5 . | . . . . High Security . | . . . . Max Security . | . . . . Peak Influence 86 | . 86 57 . Initial 22 | . . 22 . Average 14 | . 15 14 . Influence Increases 288 | . 231 57 . Destroy 0b10 Robot/C 180 | . 140 40 . Destroy 0b10 Robot/NC 25 | . 25 . . Destroy Leader 46 | . 36 10 . Successful Hack 6 | . 6 . . Disable Machine 15 | . 15 . . Destroy Structure 16 | . 9 7 . Influence Decreases 288 | . 174 114 . Entered New Map 35 | . . 35 . Time Decay 243 | . 164 79 . Lost Part 10 | . 10 . . Squads Dispatched 3 | . 3 . . Investigation 1 | . 1 . . Extermination . | . . . . Reinforcement 2 | . 2 . . Assault . | . . . . Garrison . | . . . . Intercept . | . . . . Searches Triggered . | . . . . Construction Impeded . | . . . . Haulers Reinforced . | . . . . Active Scanning Responses . | . . . . Cargo Convoy Interrupts . | . . . . Stealth | -11 -10 -10 -10 --------- Run | Yrd Mat Min Sub Distress Signals . | . . . . Communications Jammed . | . . . . Distress Signals . | . . . . Times Spotted 20 | . 13 2 5 Peak Tracking Total 4 | . 4 2 3 Tactical Retreats . | . . . . Traps | -11 -10 -10 -10 ------- Run | Yrd Mat Min Sub Traps Triggered 3 | . 3 . . Indirectly . | . . . . Trap Hack Attempts . | . . . . Triggered . | . . . . Disarmed . | . . . . Reprogrammed . | . . . . Reused . | . . . . Traps Extracted . | . . . . Installed . | . . . . Triggered . | . . . . Machines | -11 -10 -10 -10 ---------- Run | Yrd Mat Min Sub Machines Disabled 1 | . 1 . . Max in Single Turn 1 | . 1 . . Machines Repaired . | . . . . Machines Dismantled . | . . . . Machines Sabotaged . | . . . . Overloaded Fab Kills . | . . . . Hacking | -11 -10 -10 -10 --------- Run | Yrd Mat Min Sub Machines Accessed 1 | . 1 . . Terminals 1 | . 1 . . Fabricators . | . . . . Repair Stations . | . . . . Recycling Units . | . . . . Scanalyzers . | . . . . Garrison Access . | . . . . Total Hacks 2 | . 2 . . Successful 1 | . 1 . . Failed 1 | . 1 . . Catastrophic . | . . . . Database Lockouts . | . . . . Manual 2 | . 2 . . Terminals 2 | . 2 . . Fabricators . | . . . . Repair Stations . | . . . . Recycling Units . | . . . . Scanalyzers . | . . . . Garrison Access . | . . . . Terminal Hacks . | . . . . Fabricator Hacks . | . . . . Repair Station Hacks . | . . . . Recycling Unit Hacks . | . . . . Scanalyzer . | . . . . Garrison Access Hacks . | . . . . Unauthorized Hacks 1 | . 1 . . Terminals 1 | . 1 . . Operators 1 | . 1 . . Fabricators . | . . . . Repair Stations . | . . . . Recycling Units . | . . . . Scanalyzers . | . . . . Garrison Access . | . . . . Data Cores Recovered . | . . . . Used . | . . . . Hacking Detections 1 | . 1 . . Full Trace Events . | . . . . Feedback Events . | . . . . Feedback Blocked . | . . . . Robot Schematics Acquired . | . . . . Robots Built . | . . . . Authchips . | . . . . Time . | . . . . Total Robot Build Rating . | . . . . Part Schematics Acquired . | . . . . Parts Built . | . . . . Authchips . | . . . . Time . | . . . . Total Part Build Rating . | . . . . Part Studies Acquired . | . . . . Parts Repaired . | . . . . Time . | . . . . Parts Recycled . | . . . . Recycled Matter . | . . . . Retrieved Matter . | . . . . Retrieved Components . | . . . . Parts Scanalyzed . | . . . . Part Schematics Acquired . | . . . . Parts Damaged . | . . . . Bothacking | -11 -10 -10 -10 ------------ Run | Yrd Mat Min Sub Used RIF Installer . | . . . . Robots Hacked . | . . . . Non-combat . | . . . . Combat . | . . . . Robot Hacks Applied . | . . . . Relay Couplers Released . | . . . . Fabnet Peak Effective % . | . . . . Robots Rewired . | . . . . Allies Hacked . | . . . . Hacks Repelled . | . . . . Allies | -11 -10 -10 -10 -------- Run | Yrd Mat Min Sub Total Allies . | . . . . Largest Group . | . . . . Highest-Rated Group . | . . . . Highest-Rated Ally . | . . . . Total Orders . | . . . . Ally Attacks . | . . . . Total Damage . | . . . . Kills . | . . . . Allies Corrupted . | . . . . Allies Melted . | . . . . Intel | -11 -10 -10 -10 ------- Run | Yrd Mat Min Sub Active Infowar (turns) 200 | . . . 200 Optics 200 | . . . 200 Robot Analysis Total . | . . . . Derelict Logs Recovered 1 | . . . 1 Drone Launches . | . . . . Drone Recoveries . | . . . . Exploration | -11 -10 -10 -10 ------------- Run | Yrd Mat Min Sub Turns Passed 1590 | 70 849 242 429 Spaces Moved 679 | 43 381 82 173 Core 5 | 5 . . . Treads 523 | 38 381 82 22 Legs . | . . . . Wheels 148 | . . . 148 Hover 3 | . . . 3 Flight . | . . . . Fastest Speed 50 | 50 160 160 95 Average Speed 147 | 147 160 160 115 Slowest Speed 300 | 160 160 160 300 Overloaded Moves . | . . . . Propulsion Burnouts . | . . . . Robots Hopped . | . . . . Potential Cave-ins . | . . . . Cave-ins Triggered . | . . . . Exploration Rate (%) 20 | 4 51 16 10 Regions Visited 3 Branch Regions 2 Pre-discovered Areas . | . . . . Known Exits Taken . | . . . . Unknown Exits Taken 3 | 1 1 1 . Scrap Searched . | . . . . Spaces Dug . | . . . . Terrain Destroyed 15 | . 7 8 . Melee . | . . . . Projectile . | . . . . AOE 15 | . 7 8 . Terrain Rammed . | . . . . Walls Destroyed . | . . . . Machines Disabled . | . . . . Actions | -11 -10 -10 -10 --------- Run | Yrd Mat Min Sub Total 1162 | 47 578 185 352 Wait 387 | . 158 100 129 Move 676 | 42 380 81 173 Hop . | . . . . Pick Up 20 | . 11 . 9 Fast Attach 10 | 5 3 . 2 Attach 8 | . . . 8 Detach . | . . . . Swap 3 | . 2 . 1 Drop 2 | . . . 2 Fire 56 | . 24 4 28 Melee . | . . . . Ram . | . . . . Kick . | . . . . Crush . | . . . . Escape Stasis . | . . . . Rewire . | . . . . Trap . | . . . . Miscellaneous . | . . . . Route ------- -11/Scrapyard -10/Materials (discovered 2 exits: [*Mat] / [*Min]) -10/Mines (discovered 2 exits: [*Mat] / [*Sub]) -10/Subcaves History --------- Turn | Location | Event 12 | -11/Scrapyard | Discovered new exit (range 16) 71 | -11/Scrapyard | Entered Materials 248 | -10/Materials | Discovered new exit (range 8) 313 | -10/Materials | Build established: Mutant 790 | -10/Materials | Discovered new exit (range 15) 920 | -10/Materials | Entered Mines 968 | -10/Mines | Discovered new exit (range 10) 1149 | -10/Mines | Discovered new exit (range 9) 1162 | -10/Mines | Entered Subcaves 1163 | -10/Subcaves | Approached by a straggling Scientist 1241 | -10/Subcaves | Ambushed by angry Subdweller bent on revenge 1259 | -10/Subcaves | Core integrity fell below 50% 1290 | -10/Subcaves | Core integrity fell below 20% 1337 | -10/Subcaves | Lost 8 parts (1p3n1u3w) 1591 | -10/Subcaves | Destroyed by BP-OOY(R) with Subdweller Machine Gun Last Messages --------------- 01365_ JBD888PFHIJV%E9CR#:P3HEOIOFB 8VUB%CP:4 01367_ Acquired Sub. Power Source. 01368_ Acquired 11 matter. 01370_ Acquired Sub. Laser. 01373_ Subatomizers dissect the Lgt. Ion Engine. 01375_ Acquired Sub. Optics. 01378_ Acquired Multitool. 01384_ Subatomizers dissect the Lgt. Ion Engine. 01389_ Acquired Sub. Optics. 01396_ System corrupted: Heat flow error (+193). 01398_ Subatomizers dissect the Lgt. Ion Engine. 01400_ Acquired Sub. Optics. 01402_ Acquired 10 matter. 01409_ Subatomizers dissect the Lgt. Ion Engine. 01424_ System corrupted: Component data lost. 01452_ System corrupted: Heat flow error (+158). 01499_ A0Y&MM,LUVOJDNK8VS7B7W2YVUM10&SQR, 01506_ SQ-DJY(O) collects matter. 01545_ RDBCRYU>#Y0GYA7JYV 0FR0JGMARRV2 MI<:K&G Map ----- +----------------------------------------------------+ | ?????????????????????????????????????????????????? | | ?????????????????????????????????????????????????? | | ?????????????????????????????????????????????????? | | ?????????????????????????????????????????????????? | | ?????????????????????????????????????????????????? | | ?????????????????????????????????????????????????? | | ?????????????????????????????????????????????????? | | ??????????????????????####???????????????????????? | | ?????????????????????## #???????????????????????? | | ?????????????????????# #???????????????????????? | | ?????????????????????# #???????????????????????? | | ????????????????????## #?????????????########??? | | ????????????????????# #???#####?????? ??? | | ?????????????????????# ##### #?????? ??? | | ?????????????????????# ## #??????? ???? | | ?????????????????????# #???????? ???? | | ?????????????????????## ###??????? ???? | | ?????????????????????## ## ###?????# ##??? | | ????????????????????## #### #?????# #??? | | ????????????????????# ##??# ##?????? #???? | | ????????????????????# ##??## ##?????## #???? | | ???????????????????## ###?# ####### ##??? | | ??????????????????## ### ### # #### | | ??????????????????# ### #### ## | | ???????#?###??????# ##?## ### | | ????#### # ###???## R @##??## ### | | ????? ???## ####???# ## | | ???????? #?## #??????# # | | ???????????# ## ##??????# """ %! *= % | | ???????????# ##???????# #""" * ! * | | ????????# ### ##????????# #####"### " ## | | ??????????????# ###????????## #??# ### ## ## | | ??????????????# ##??????????# ##### ####### & | | ??????????????# #???????????# ## ##??# | | ????????????? #???????????# # #??# # | | ???????????? ???????????## #??###### | | ??????????? ???????????# # ###???????? | | ????????? ???????????##### ##?????????? | | ???????? ???????????????## ###??????????? | | ??????? [ ### ????????????????###????????????? | | ?????? ##??## ???????????????????????????????? | | ????? ?????# ??????????????????????????????? | | ???? ?????? ??????????????????????????????? | | ???## ??????? ??????????????????????????????? | | ????# ??????? ??????????????????????????????? | | ????# ???????? ??????????????????????????????? | | ????##????????? ##??????????????????????????????? | | ??????????????? ????????????????????????????????? | | ??????????????? #????????????????????????????????? | | ???????????????#?????????????????????????????????? | +----------------------------------------------------+ Best States ------------- Heat Dissipation 35 Energy Generation 15 Energy Capacity 250 Matter Stores 300 Matter Capacity 300 Sight Range 21 Terrain Scan Density 10 Evasion (%) 41 Recoil Reduction 2 Item Schematics ----------------- None Robot Schematics ------------------ None Fabricated ------------ Nothing Repaired ---------- Nothing Studied --------- None Alien Tech Used ----------------- None Achievements -------------- Art Critic Challenges ------------ None Game ------ Seed GyrokineticBeamShield Manual? 0 Play Time 00:10:28 Cumulative 477.7 hours Start 2025.10.24 @ 10:26:26 End 2025.10.24 @ 10:33:41 Sessions 1 Manual Loads 0 Difficulty Rogue Special Mode None Game No. 807 Rogue 652 Adventurer 148 Explorer 7 Win Type - Total 24 Types 19/1/3/1/0/0/0/0/0/0 Lore% 65 Gallery% 76 Achievement% 52 Wizard Run 0 Options --------- Layout 1 ASCII 0 Keyboard 0 Movement Numpad Keybinds 0 Fullscreen 2 Font 24/Smallcaps Map View 50x35 Zoom Use 0% Tactical HUD 1 Map Filters NONE Filters NONE Steam 1 RUN: cf8fe1e9-79b1-4393-9a7d-5927105e5af9